bitfinex/quotes_ETHUSD_20220305
["timestamp","ask_amount","ask_price","bid_price","bid_amount"]
[1646484075023,3.7,2664.1,2663.6,0.829]
[1646484075227,3.7,2664.1,2663.8,1.06855581]
[1646484075825,3.7,2664.1,2663.4,0.37935576]
[1646484076025,3.7,2664.1,2663.5,0.377]
[1646484076827,4.56453096,2664.1,2663.5,0.377]
[1646484077027,4.56453096,2664.1,2663.2,1.0]
[1646484077230,4.56453096,2664.1,2663.4,0.00241753]
[1646484077430,4.56453096,2664.1,2663.0,0.00241753]
[1646484077631,3.5,2664.0,2663.0,0.00241753]
[1646484077833,3.5,2664.0,2662.6,0.46343552]
[1646484077834,4.56453096,2664.1,2662.7,1.8784709]
[1646484078031,4.56453096,2664.1,2663.2,1.59078663]
[1646484078231,3.7,2664.1,2663.6,0.93217199]
[1646484079069,3.7,2664.1,2663.3,0.00241753]
[1646484079269,3.70147583,2664.1,2663.3,0.00241753]
[1646484079469,3.70147583,2664.1,2663.3,1.77043443]
[1646484080069,3.70147583,2664.1,2663.4,0.93899]
[1646484080270,3.7,2664.1,2663.6,1.09141394]
[1646484080474,3.70309241,2664.1,2663.6,1.04141394]
[1646484080670,3.70309241,2664.1,2663.3,2.77043443]
[1646484080671,3.70309241,2664.1,2663.3,1.45441753]
[1646484080872,3.70309241,2664.1,2663.3,0.00241753]
[1646484081475,3.7,2664.1,2663.3,0.00241753]
[1646484081676,3.70309241,2664.1,2663.3,0.00241753]
[1646484081873,3.70309241,2664.1,2663.3,1.15330193]
[1646484082134,1.02553294,2663.9,2663.3,1.15330193]
[1646484082324,1.02553294,2663.9,2663.3,0.00241753]
[1646484082524,1.02553294,2663.9,2663.2,0.93911]
[1646484082726,1.02553294,2663.9,2663.2,0.94152753]
[1646484082925,3.70309236,2664.1,2663.2,1.32162099]
[1646484083527,3.33278313,2664.1,2663.2,1.32162099]
[1646484083725,3.33278313,2664.1,2663.2,1.31852753]
[1646484083926,3.32969077,2664.1,2663.2,1.31852753]
[1646484084227,3.33278315,2664.1,2663.6,1.92809553]
[1646484084426,3.33278315,2664.1,2663.6,2.86701553]
[1646484084625,3.33278315,2664.1,2663.6,1.98915553]
[1646484084824,3.33278315,2664.1,2663.6,0.98915553]
[1646484085025,3.32969077,2664.1,2663.6,0.98915553]
[1646484085428,3.33269049,2664.1,2663.6,0.98915553]
[1646484085877,3.33269049,2664.1,2663.3,0.00241753]
[1646484086272,3.32969077,2664.1,2663.3,0.00241753]
[1646484086479,3.33269049,2664.1,2663.3,0.00241753]
[1646484086872,1.10874951,2663.4,2663.2,0.00300079]
[1646484087276,1.09885951,2663.4,2663.2,0.00300079]
[1646484087475,1.09885951,2663.4,2662.4,0.01215473]
[1646484088077,1.13039001,2663.0,2662.4,0.95152473]
[1646484088877,1.13039001,2663.0,2662.6,0.00286162]
[1646484089177,1.12315701,2663.0,2662.6,0.00286162]
[1646484089822,1.12315701,2663.0,2662.4,0.95152473]
[1646484090224,1.12315701,2663.0,2662.7,0.00286157]
[1646484091033,1.12315701,2663.0,2662.4,0.95152473]
[1646484091229,1.12315701,2663.0,2662.7,0.0026369]
[1646484092229,1.12315701,2663.0,2662.4,0.01215473]
[1646484092431,1.12315701,2663.0,2662.7,0.00263135]
[1646484092632,4.82315701,2663.0,2662.7,0.00263135]
[1646484092832,4.81326701,2663.0,2662.7,0.00263135]
[1646484093468,4.81326701,2663.0,2662.4,0.01215473]
[1646484093674,5.81326701,2663.0,2662.7,0.00263135]
[1646484093869,6.00096701,2663.0,2662.7,0.00263135]
[1646484094470,9.50096701,2663.0,2662.7,0.00263135]
[1646484094670,9.50096701,2663.0,2662.4,0.0097372]
[1646484094671,6.00096701,2663.0,2662.4,0.0097372]
[1646484094869,6.00096701,2663.0,2662.7,0.00263135]
[1646484095669,3.8877,2663.0,2662.7,0.00263135]
[1646484095870,3.7,2663.0,2662.4,1.16406838]
[1646484096071,3.7,2663.0,2662.7,0.00265456]
[1646484096875,3.7,2663.0,2662.8,0.88098563]
[1646484097323,3.7,2663.0,2662.7,0.00265456]
[1646484098323,3.7,2663.0,2662.8,0.452]
[1646484099724,3.7,2663.0,2662.8,0.45465219]
[1646484100729,3.7,2663.0,2662.8,0.452]
[1646484100972,3.7,2663.0,2662.8,0.00265219]
[1646484101374,3.7,2663.0,2662.6,0.9393659]
[1646484101775,3.7,2663.0,2662.4,1.02276508]
[1646484101975,3.7,2663.0,2662.4,0.01215473]
[1646484102178,3.7,2663.0,2662.5,0.9393941]
[1646484103381,3.7,2663.0,2662.7,1.878541]
[1646484103580,3.33000001,2663.0,2662.7,1.878541]
[1646484104627,3.33000001,2663.0,2662.7,1.88119547]
[1646484104821,3.33000001,2663.0,2662.8,0.68024935]
[1646484105221,0.00265348,2663.7,2662.9,0.452]
[1646484105421,3.0367,2664.0,2663.0,1.85015331]
[1646484105620,3.0367,2664.0,2663.1,0.45441753]
[1646484105821,0.0026535,2663.7,2663.2,0.00241753]
[1646484106023,0.0026535,2663.7,2663.3,0.402]
[1646484106220,0.0026535,2663.7,2663.4,0.9389559]
[1646484106421,0.0026535,2663.7,2663.1,3.27115063]
[1646484106624,1.08978493,2663.9,2663.1,3.2687331]
[1646484106827,1.08978493,2663.9,2663.1,4.27115063]
[1646484107026,0.00265439,2663.7,2663.1,3.27115063]
[1646484107227,0.00265439,2663.7,2663.1,5.43017063]
[1646484107427,0.00265439,2663.7,2663.1,4.43017063]
[1646484107630,0.00265439,2663.7,2663.2,0.93911]
[1646484107829,1.1877,2664.5,2663.2,0.93911]
[1646484108028,0.1877,2664.5,2663.3,0.00241753]
[1646484108229,0.00265433,2663.7,2663.3,0.00241753]
[1646484108474,0.00265433,2663.7,2663.1,0.00241753]
[1646484108871,0.00265433,2663.7,2662.8,0.00241753]
[1646484109071,1.0,2663.8,2662.8,0.00241753]
[1646484109269,4.47618815,2663.7,2662.8,0.00241753]
[1646484109472,4.47884248,2663.7,2662.7,0.00265533]
[1646484109671,15.93884248,2663.7,2662.7,0.00265533]
[1646484109870,11.46,2663.4,2662.7,0.00265533]
[1646484110069,3.0,2663.5,2661.8,1.4869242]
[1646484110070,19.96,2663.3,2661.9,0.36991326]
[1646484110269,3.5,2663.3,2661.9,1.28103657]
[1646484110673,0.89552094,2662.8,2662.7,0.00265226]
[1646484111473,0.89552094,2662.8,2662.5,0.9394298]
[1646484111673,0.89552094,2662.8,2662.2,0.1877]
[1646484111879,1.91261644,2664.0,2662.5,0.01271941]
[1646484112142,0.1472,2665.2,2662.5,0.01271941]
[1646484112143,1.0,2664.3,2663.6,0.01269806]
[1646484112332,1.0,2664.3,2663.7,0.452]
[1646484112531,1.0,2664.3,2663.8,0.93883]
[1646484112732,1.0,2664.3,2663.9,0.452]
[1646484112934,1.11620454,2664.2,2663.9,0.452]
[1646484113931,3.7,2664.4,2663.9,0.452]
[1646484114135,3.7,2664.4,2663.9,0.402]
[1646484114136,0.00307802,2664.2,2663.9,0.402]
[1646484115132,3.7,2664.4,2663.9,5.04912887]
[1646484115334,0.00307802,2664.2,2664.0,1.87751]
[1646484115536,0.00307802,2664.2,2664.1,4.8906891]
[1646484115869,0.00307802,2664.2,2664.1,5.8906891]
[1646484116071,0.00307802,2664.2,2664.1,6.0781891]
[1646484116269,3.7,2664.4,2664.1,6.0781891]
[1646484116470,3.7,2664.4,2664.3,0.93449265]
[1646484116670,3.7,2664.4,2664.3,1.38649265]
[1646484117071,3.7,2664.4,2664.3,4.88649265]
[1646484117278,3.7,2664.4,2664.3,5.88649265]
[1646484117876,3.7,2664.4,2664.3,5.83649265]
[1646484118578,2.64614156,2664.4,2664.3,6.21349265]
[1646484118776,1.2378,2666.6,2664.8,0.93835]
[1646484118777,0.1875,2665.7,2664.8,0.93835]
[1646484118975,0.68448961,2665.9,2664.9,3.952]
[1646484118976,0.01193574,2665.9,2664.9,3.952]
[1646484119178,0.01193574,2665.9,2664.9,4.329]
[1646484119476,0.01193574,2665.9,2664.9,5.329]
[1646484119723,0.01193574,2665.9,2665.0,2.81453]
[1646484119929,0.01193574,2665.9,2665.1,3.952]
[1646484120125,0.00277555,2666.0,2665.5,2.8146008]
[1646484120324,0.01193787,2665.9,2665.6,0.452]
[1646484121123,0.00277555,2666.0,2665.6,0.452]
[1646484121523,0.00298472,2665.9,2665.6,0.452]
[1646484121923,0.88440796,2665.9,2665.6,0.452]
[1646484122123,0.88440796,2665.9,2665.6,0.402]
[1646484122326,0.88142324,2665.9,2665.6,0.402]
[1646484122727,0.00284898,2665.9,2665.6,0.402]
[1646484123473,0.10451876,2666.5,2665.6,0.402]
[1646484123675,0.8671878,2666.4,2665.6,0.402]
[1646484123875,0.00284898,2665.9,2665.6,0.402]
[1646484124476,0.00284898,2665.9,2665.7,3.5]
[1646484124676,0.00284898,2665.9,2665.8,0.452]
[1646484124877,3.5,2666.0,2665.8,4.8901042]
[1646484125079,3.5,2666.0,2665.9,3.5]
[1646484125276,3.5,2666.0,2665.9,4.952]
[1646484125880,3.5,2666.0,2665.9,1.452]
[1646484126380,3.5,2666.0,2665.9,0.452]
[1646484127428,3.5,2666.0,2665.9,0.402]
[1646484131874,3.5,2666.0,2665.5,1.8765621]
[1646484131875,0.81388067,2665.8,2665.5,1.8765621]
[1646484132073,0.81388067,2665.8,2665.1,1.3904938]
[1646484132276,1.07660739,2665.7,2665.1,1.3904938]
[1646484132476,1.07660739,2665.7,2665.1,0.452]
[1646484132980,1.07660739,2665.7,2664.9,0.1875]
[1646484133178,1.07660739,2665.7,2664.8,0.00285577]
[1646484133379,1.07660739,2665.7,2664.7,0.1875]
[1646484133577,0.90640167,2664.9,2664.8,0.00285552]
[1646484134378,0.90640167,2664.9,2664.3,0.452]
[1646484134827,0.90640167,2664.9,2664.7,0.0028022]
[1646484135428,0.90640167,2664.9,2664.3,0.01121049]
[1646484135729,0.90640167,2664.9,2664.1,2.58025689]
[1646484135928,0.90640167,2664.9,2664.7,0.00280223]
[1646484136933,0.1875,2665.5,2664.1,2.23095689]
[1646484136934,0.95948988,2664.4,2664.1,2.23095689]
[1646484137132,0.95948988,2664.4,2664.1,0.1875]
[1646484137334,0.95948988,2664.4,2663.8,0.1875]
[1646484138133,1.0546109,2664.0,2663.8,0.1875]
[1646484139175,1.0546109,2664.0,2663.5,2.0799867]
[1646484140174,1.1773,2664.3,2663.5,2.0799867]
[1646484140376,1.178,2664.8,2663.9,0.9388574]
[1646484140577,0.1875,2665.0,2663.9,4.3888574]
[1646484140880,0.0029849,2665.2,2664.0,0.452]
[1646484141078,0.0029849,2665.2,2664.1,3.5]
[1646484141277,0.0029849,2665.2,2664.6,1.08894603]
[1646484141476,0.0029849,2665.2,2664.7,3.952]
[1646484141678,2.4696,2665.7,2664.7,3.902]
[1646484141882,2.4696,2665.7,2664.7,4.902]
[1646484142134,2.4696,2665.7,2664.7,5.6405]
[1646484142327,2.4696,2665.7,2664.7,4.702]
[1646484142528,2.4696,2665.7,2664.7,1.452]
[1646484142828,2.4696,2665.7,2664.8,0.9384534]
[1646484143226,0.81388067,2665.8,2664.8,0.9384534]
[1646484143432,0.81388067,2665.8,2664.3,0.6395]
[1646484143433,1.10096472,2665.3,2664.3,0.6395]
[1646484143628,1.10096472,2665.3,2664.2,0.00159035]
[1646484143829,11.46,2665.2,2664.2,0.00159035]
[1646484144027,11.46,2665.2,2663.8,3.5]
[1646484144228,1.0,2665.1,2663.8,3.5]
[1646484144432,1.0,2665.1,2664.2,0.00159035]
[1646484144631,11.46,2665.1,2664.2,0.00159035]
[1646484144931,1.0,2665.1,2664.2,0.00159035]
[1646484145129,1.0,2664.9,2664.2,0.00159035]
[1646484145329,1.0,2664.9,2663.7,0.9389711]
[1646484145529,1.0,2664.9,2664.2,0.00307556]
[1646484145731,0.99708888,2664.8,2664.2,0.00307556]
[1646484145980,0.88582163,2664.3,2664.2,0.00307556]
[1646484146380,0.88582163,2664.3,2663.5,7.47]
[1646484146778,0.88582163,2664.3,2664.1,0.0030754]
[1646484146979,1.06409872,2663.7,2663.5,7.38537983]
[1646484147182,1.06409872,2663.7,2663.5,0.01230443]
[1646484147582,1.06409872,2663.7,2663.2,0.00240761]
[1646484147783,0.1877,2664.4,2663.2,0.07695345]
[1646484147983,2.1469,2664.8,2663.2,3.57936106]
[1646484147984,0.1877,2664.7,2663.2,3.57936106]
[1646484148182,2.1469,2664.8,2663.2,0.00240761]
[1646484148382,2.1469,2664.8,2663.3,0.452]
[1646484148587,1.15917106,2664.8,2663.3,0.452]
[1646484148783,0.96049858,2664.2,2663.4,3.5]
[1646484148982,0.96049858,2664.2,2663.2,3.81957371]
[1646484149183,0.96049858,2664.2,2663.9,0.00149823]
[1646484150025,0.96049858,2664.2,2663.2,4.50240761]
[1646484150226,1.11116757,2663.7,2663.2,1.00240761]
[1646484150426,1.0,2664.7,2663.2,1.0]
[1646484150628,1.7265354,2664.6,2663.1,7.47240761]
[1646484150834,1.53908785,2664.5,2663.2,3.5]
[1646484151030,0.1875,2664.4,2663.1,7.47240761]
[1646484151235,11.46,2664.2,2663.1,7.47240761]
[1646484151432,0.1877,2664.1,2663.1,7.47240761]
[1646484151633,0.97500406,2664.0,2663.1,8.37683627]
[1646484151832,0.97500406,2664.0,2663.1,7.47240761]
[1646484152836,1.11675939,2663.6,2663.4,0.00307308]
[1646484153679,1.11675939,2663.6,2663.1,0.00240761]
[1646484153880,1.11675939,2663.6,2663.4,0.00307311]
[1646484153881,12.57675939,2663.6,2663.4,0.00307311]
[1646484154277,13.57675939,2663.6,2663.4,0.00307311]
[1646484154477,13.57675939,2663.6,2663.0,0.01229428]
[1646484154478,0.0032226,2663.3,2663.0,0.01229428]
[1646484154679,1.03188321,2663.2,2663.0,0.01229428]
[1646484154879,1.03188321,2663.2,2662.6,0.00240761]
[1646484155082,1.03188321,2663.2,2662.5,7.47]
[1646484155282,1.03188321,2663.2,2662.5,10.97]
[1646484155685,1.03188321,2663.2,2662.5,7.47]
[1646484156284,4.53188321,2663.2,2662.5,7.47]
[1646484157229,3.5,2663.2,2662.6,3.5]
[1646484157431,3.5,2663.2,2662.5,7.47]
[1646484157630,3.5,2663.2,2662.7,0.00158618]
[1646484158329,0.91741061,2662.8,2662.7,0.00158618]
[1646484158529,3.5,2663.2,2662.5,7.47]
[1646484158729,3.5,2663.2,2662.8,0.00307344]
[1646484159530,0.9625122,2663.1,2662.8,0.00307344]
[1646484159731,0.9625122,2663.1,2662.6,0.00240761]
[1646484159930,0.9625122,2663.1,2662.9,0.00307341]
[1646484160874,3.5,2663.2,2662.6,0.00240761]
[1646484161076,3.5,2663.2,2662.9,0.00307341]
[1646484161275,3.497731,2663.2,2662.9,0.00307341]
[1646484162179,3.497731,2663.2,2662.7,0.00240761]
[1646484162379,3.497731,2663.2,2662.9,0.00297195]
[1646484162779,3.497731,2663.2,2662.9,3.50297195]
[1646484162979,3.497731,2663.2,2663.0,1.1043803]
[1646484163180,3.497731,2663.2,2663.0,1.5563803]
[1646484163879,3.497731,2663.2,2663.0,5.0563803]
[1646484164079,3.497731,2663.2,2663.1,3.5]
[1646484164282,3.497731,2663.2,2663.1,3.952]
[1646484164481,1.72882531,2663.2,2663.1,4.952]
[1646484164729,0.1877,2664.2,2664.1,1.02690517]
[1646484164929,0.00297023,2664.5,2664.1,4.97890517]
[1646484165334,0.00297023,2664.5,2664.1,1.47890517]
[1646484165731,0.1875,2664.9,2664.1,1.47890517]
[1646484166334,0.1875,2664.9,2664.1,4.97890517]
[1646484166841,0.3713,2665.0,2664.1,4.97890517]
[1646484166842,0.3713,2665.0,2664.2,0.377]
[1646484167036,0.3713,2665.0,2664.4,0.377]
[1646484167236,0.00284155,2664.6,2664.5,6.20591]
[1646484167438,0.00284155,2664.6,2664.5,9.40224234]
[1646484167735,0.00284155,2664.6,2664.5,7.52533234]
[1646484168135,0.3713,2665.0,2664.5,7.52533234]
[1646484168376,0.00284153,2664.7,2664.6,3.40701809]
[1646484168581,0.00284153,2664.7,2664.6,3.85901809]
[1646484169385,0.3713,2665.0,2664.6,3.85901809]
[1646484169582,17.5595,2665.7,2664.6,3.85901809]
[1646484169583,0.00292995,2664.8,2664.6,3.40701809]
[1646484170583,1.16011081,2665.1,2664.6,3.40701809]
[1646484170785,0.96919936,2664.7,2664.6,3.40701809]
[1646484172432,0.00292995,2664.8,2664.6,3.40701809]
[1646484172833,1.0,2665.2,2664.6,3.40701809]
[1646484173035,1.53872545,2665.1,2664.6,3.40701809]
[1646484173236,0.0028441,2664.8,2664.6,3.40701809]
[1646484174137,1.0,2665.2,2664.6,3.40701809]
[1646484174338,0.0028441,2664.8,2664.7,3.5]
[1646484174739,0.0028441,2664.8,2664.7,4.5]
[1646484175137,0.0028441,2664.8,2664.7,4.877]
[1646484175338,1.0,2665.2,2664.7,8.6327854]
[1646484175538,0.00284407,2664.9,2664.7,5.8055364]
[1646484175741,0.00284407,2664.9,2664.8,3.5]
[1646484176180,0.00284407,2664.9,2664.8,4.5]
[1646484176383,0.00284407,2664.9,2664.8,1.0]
[1646484176581,1.0,2665.2,2664.8,1.0]
[1646484176781,0.00284982,2665.0,2664.8,3.5]
[1646484177186,0.00284982,2665.0,2664.8,4.5]
[1646484177386,0.00284982,2665.0,2664.8,3.5]
[1646484177686,1.0,2665.2,2664.8,4.5]
[1646484178085,1.0,2665.2,2664.8,1.0]
[1646484178086,0.00284979,2665.0,2664.8,1.0]
[1646484178286,0.00284979,2665.0,2664.7,0.377]
[1646484178784,0.00284979,2665.0,2664.6,5.329]
[1646484178984,1.0,2665.2,2664.6,1.452]
[1646484179186,1.0,2665.2,2664.6,0.452]
[1646484179187,0.00284982,2665.0,2664.6,0.452]
[1646484179388,0.00284982,2665.0,2664.3,3.6875]
[1646484179645,0.00284982,2665.0,2664.3,4.5]
[1646484180039,0.99569687,2665.1,2664.3,4.5]
[1646484180541,1.0,2665.2,2664.4,0.6395]
[1646484180542,0.00284951,2664.8,2664.4,0.6395]
[1646484180839,0.00284951,2664.8,2664.5,3.5]
[1646484181240,1.0,2665.2,2664.5,3.952]
[1646484181644,0.00284951,2664.8,2664.5,3.952]
[1646484181843,0.00284951,2664.8,2664.5,0.452]
[1646484182042,0.00284951,2664.8,2664.5,3.952]
[1646484182449,1.0,2665.2,2664.5,3.952]
[1646484182646,0.00284951,2664.8,2664.5,3.952]
[1646484183047,0.00284951,2664.8,2664.5,0.452]
[1646484183682,1.22659425,2665.1,2664.5,0.452]
[1646484183882,0.00285815,2664.8,2664.5,0.452]
[1646484184684,0.00285815,2664.8,2664.4,0.1875]
[1646484184883,1.22659425,2665.1,2664.1,1.91229152]
[1646484185085,0.00285815,2664.8,2664.1,1.91229152]
[1646484185288,1.14729488,2664.7,2664.1,0.03484522]
[1646484185492,1.14729488,2664.7,2663.7,7.47]
[1646484185988,11.46,2664.5,2663.7,7.47]
[1646484186390,1.06961905,2663.5,2663.3,0.00285953]
[1646484186790,1.0,2664.2,2663.3,0.00285953]
[1646484186991,1.0,2664.2,2663.3,3.50285953]
[1646484187235,1.0,2664.1,2663.2,8.46456001]
[1646484187434,1.0,2664.1,2663.2,8.27696001]
[1646484187639,1.0,2664.1,2663.3,0.0028587]
[1646484187640,12.99929456,2664.0,2663.3,0.0028587]
[1646484187935,1.0,2663.5,2663.3,0.0028587]
[1646484188335,0.1877,2663.9,2663.3,0.0028587]
[1646484188535,1.09525663,2663.6,2663.2,0.80696001]
[1646484189239,2.09525663,2663.6,2663.2,0.80696001]
[1646484191079,2.09525663,2663.6,2663.3,0.00306641]
[1646484191279,1.0,2663.5,2663.3,0.00306641]
[1646484191779,11.46,2663.4,2663.3,0.00306641]
[1646484191979,1.0,2663.5,2663.3,0.00306641]
[1646484192184,1.0,2663.5,2663.2,0.80696001]
[1646484192384,1.0,2663.5,2663.3,0.00306641]
[1646484193386,1.0,2663.5,2663.2,0.80696001]
[1646484193586,1.09525663,2663.6,2663.3,0.00306641]
[1646484193787,11.46,2663.5,2663.3,0.00306641]
[1646484193988,12.46,2663.5,2663.3,0.00306641]
[1646484194188,1.0,2663.3,2663.2,0.80696001]
[1646484194839,12.46,2663.3,2663.2,0.80696001]
[1646484195743,1.0,2663.3,2663.2,0.80696001]
[1646484195941,11.46,2663.1,2662.7,0.00594282]
[1646484196142,11.46,2662.9,2662.7,0.00594282]
[1646484196542,12.46,2662.9,2662.7,0.00594282]
[1646484196741,1.0,2662.8,2662.7,0.00594282]
[1646484196941,1.0,2662.8,2662.2,7.47]
[1646484197142,1.0,2663.5,2662.2,7.47]
[1646484197347,3.4039,2663.9,2662.7,0.00297476]
[1646484197543,1.53936671,2663.8,2662.7,0.00297476]
[1646484197946,14.8639,2663.9,2662.7,0.00297476]
[1646484198143,14.8639,2663.9,2663.6,0.00325]
[1646484198144,3.4039,2663.9,2663.6,0.00325]
[1646484198403,5.3262,2664.1,2663.6,0.00325]
[1646484198404,0.1877,2664.0,2663.6,0.00325]
[1646484198593,1.0,2664.1,2663.6,0.00325]
[1646484199191,1.08075154,2663.9,2663.6,0.00325]
[1646484200095,11.46,2663.8,2663.6,0.00325]
[1646484202738,1.08075154,2663.9,2663.6,0.00325]
[1646484203242,1.1877,2664.1,2663.6,0.00325]
[1646484203437,1.0,2664.1,2663.6,0.00325]
[1646484204642,1.0,2664.1,2663.2,0.00284558]
[1646484204844,1.08343665,2663.8,2663.2,0.00284558]
[1646484205244,1.08343665,2663.8,2663.1,3.5]
[1646484205443,1.0,2664.1,2663.1,3.5]
[1646484205643,1.0,2664.1,2663.2,0.00284539]
[1646484206287,3.54184432,2664.2,2663.2,0.00284539]
[1646484206488,3.539,2664.2,2663.5,0.96868026]
[1646484206689,3.539,2664.2,2663.6,3.5]
[1646484206690,0.1877,2664.2,2663.6,3.5]
[1646484206888,0.00284377,2664.2,2663.8,0.377]
[1646484207087,0.00284377,2664.2,2663.9,4.329]
[1646484207292,0.00284377,2664.2,2664.0,0.829]
[1646484207494,0.00284377,2664.2,2664.1,3.5]
[1646484207694,2.5453,2665.2,2664.1,5.09740374]
[1646484207695,1.14784366,2665.0,2664.1,5.09740374]
[1646484208093,1.14784366,2665.0,2664.1,6.97491004]
[1646484208094,0.00284397,2664.2,2664.1,6.97491004]
[1646484208498,0.00284397,2664.2,2664.1,7.35191004]
[1646484208701,0.00284397,2664.2,2664.1,8.35191004]
[1646484208896,1.53862529,2665.5,2664.2,5.377]
[1646484209096,1.53862529,2665.5,2664.4,0.377]
[1646484209298,3.5759,2665.6,2665.0,1.14120025]
[1646484209497,2.90702767,2665.8,2665.1,3.5]
[1646484209498,1.96338067,2665.8,2665.1,3.5]
[1646484209738,2.15088067,2665.8,2665.1,3.5]
[1646484210742,0.87786284,2665.7,2665.1,3.5]
[1646484211340,0.87786284,2665.7,2665.1,4.4384479]
[1646484211740,0.81388067,2665.8,2665.1,4.4384479]
[1646484212746,0.00149117,2665.6,2665.1,4.4384479]
[1646484213801,1.85978482,2665.8,2665.1,4.4384479]
[1646484213998,1.85978482,2665.8,2665.1,0.9384479]
[1646484213999,0.00306775,2665.5,2665.1,0.9384479]
[1646484214197,1.64117059,2665.0,2664.6,3.5]
[1646484214398,1.64117059,2665.0,2664.5,0.829]
[1646484215198,0.001492,2664.9,2664.5,0.829]
[1646484215399,0.001492,2664.9,2664.5,0.452]
[1646484215600,0.001492,2664.9,2664.0,4.18026194]
[1646484215801,0.001492,2664.9,2664.0,3.72826194]
[1646484215998,1.64117059,2665.0,2664.0,3.72826194]
[1646484216401,0.001492,2664.6,2664.0,3.72826194]
[1646484216600,1.09839558,2664.6,2664.0,3.72826194]
[1646484216801,1.09514558,2664.6,2664.0,3.72826194]
[1646484217001,1.09514558,2664.6,2664.1,3.5]
[1646484217439,1.09514558,2664.6,2664.0,3.72826194]
[1646484218741,1.09514558,2664.6,2664.0,3.91576194]
[1646484219140,1.09514558,2664.6,2664.0,3.72826194]
[1646484219341,3.5,2664.5,2664.0,3.72826194]
[1646484219542,3.5,2664.8,2664.0,3.72826194]
[1646484220999,3.6875,2664.9,2664.0,3.72826194]
[1646484221193,0.00307119,2664.6,2664.0,3.72826194]
[1646484222197,1.18980433,2664.7,2664.0,3.72826194]
[1646484222396,0.00307113,2664.6,2664.0,3.72826194]
[1646484223396,1.18980433,2664.7,2664.0,3.72826194]
[1646484223597,0.00296978,2664.6,2664.0,3.72826194]
[1646484224634,1.18980433,2664.7,2664.0,3.72826194]
[1646484224838,0.00296978,2664.6,2664.0,3.72826194]
[1646484225637,1.18980433,2664.7,2664.0,3.72826194]
[1646484226141,0.00296978,2664.6,2664.0,3.72826194]
[1646484226941,1.18980433,2664.7,2664.0,3.72826194]
[1646484227141,0.00289874,2664.6,2664.0,3.72826194]
[1646484227944,0.00289874,2664.6,2664.1,3.61577077]
[1646484228144,1.64117059,2665.0,2664.2,0.93859]
[1646484228398,0.00289874,2664.6,2664.3,3.6176894]
[1646484228589,0.00289874,2664.6,2664.3,0.452]
[1646484228787,0.00289874,2664.6,2664.3,1.452]
[1646484228988,0.00289874,2664.6,2664.3,1.35893377]
[1646484229188,0.00289874,2664.6,2664.3,0.452]
[1646484229393,1.53879405,2664.9,2664.4,3.42536764]
[1646484229591,0.00149074,2664.6,2664.4,3.42536764]
[1646484230492,1.53879405,2664.9,2664.4,3.42536764]
[1646484230493,0.99869285,2664.5,2664.4,3.42536764]
[1646484230693,0.99869285,2664.5,2663.6,0.00284978]
[1646484230893,1.53879405,2664.4,2663.6,0.00284978]
[1646484231096,1.53879405,2664.4,2663.7,0.1875]
[1646484231495,1.53879405,2664.4,2663.6,0.00284978]
[1646484231693,1.53879405,2664.6,2663.5,0.9390298]
[1646484231996,1.53879405,2664.5,2663.6,0.00284952]
[1646484232244,1.53879405,2664.4,2663.6,0.00284952]
[1646484232544,1.16096966,2663.9,2663.6,0.00284952]
[1646484232745,1.15771666,2663.9,2663.6,0.00284952]
[1646484232944,1.15771666,2663.9,2663.5,0.9390298]
[1646484234345,1.15771666,2663.9,2663.6,0.00285187]
[1646484234746,1.15045566,2663.9,2663.6,0.00285187]
[1646484235350,1.15045566,2663.9,2663.3,0.00127545]
[1646484235752,1.0,2664.3,2663.6,0.00285185]
[1646484235753,4.5,2664.3,2663.6,0.00285185]
[1646484235991,0.91325001,2663.7,2663.6,0.00285185]
[1646484236591,0.91325001,2663.7,2663.0,0.00240761]
[1646484236791,0.91083001,2663.7,2663.0,0.00240761]
[1646484236995,0.91083001,2663.7,2663.5,0.0028519]
[1646484237797,0.90598901,2663.7,2663.0,0.00240761]
[1646484237998,0.90598901,2663.7,2663.5,0.00285173]
[1646484238396,0.1877,2664.3,2663.5,0.00285173]
[1646484238596,1.53929003,2664.2,2663.5,0.00285173]
[1646484238796,0.1875,2664.1,2663.5,0.00285173]
[1646484239000,1.53929003,2664.0,2663.0,0.00240761]
[1646484239298,1.53929003,2664.0,2663.6,0.00285171]
[1646484239497,0.00341447,2663.5,2663.0,0.01381708]
[1646484240140,1.22388139,2663.2,2663.0,0.00240761]
[1646484240341,0.00341447,2663.5,2662.8,8.41165841]
[1646484240542,0.00341447,2663.5,2662.8,8.4092508]
[1646484240741,0.00341447,2663.5,2662.8,8.41165841]
[1646484240944,0.00341447,2663.5,2662.9,3.5]
[1646484241343,0.00341447,2663.5,2662.9,3.4]
[1646484241541,0.00341447,2663.5,2663.0,0.00158607]
[1646484242544,0.00341447,2663.5,2662.9,3.4]
[1646484242745,0.00099147,2663.5,2663.1,0.00158601]
[1646484243790,0.00099147,2663.5,2663.1,1.3911359]
[1646484243990,0.00099147,2663.5,2663.2,0.00307405]
[1646484244289,0.00099147,2663.5,2663.2,3.50307405]
[1646484244588,0.00099147,2663.5,2663.2,4.95507405]
[1646484244994,0.00099147,2663.5,2663.2,4.952]
[1646484245188,0.00099147,2663.5,2663.2,1.45507402]
[1646484245588,0.00099147,2663.5,2663.2,0.45507402]
[1646484246190,0.00099147,2663.5,2663.2,0.452]
[1646484246390,0.00099147,2663.5,2663.2,0.45497258]
[1646484247444,0.00099147,2663.5,2663.2,0.452]
[1646484247646,0.00099147,2663.5,2663.2,0.45497258]
[1646484248645,0.00099147,2663.5,2663.2,0.452]
[1646484248847,0.00099147,2663.5,2663.2,0.45497258]
[1646484249845,0.00099147,2663.5,2663.2,0.452]
[1646484250045,0.00099147,2663.5,2663.2,0.4548467]
[1646484250901,0.00099147,2663.5,2663.2,0.452]
[1646484251093,0.00099147,2663.5,2663.3,4.41087526]
[1646484251295,0.00099147,2663.5,2663.4,3.952]
[1646484251694,1.53908388,2664.6,2663.6,0.938747]
[1646484251895,1.53908388,2664.6,2663.7,3.952]
[1646484252095,1.53908388,2664.5,2663.7,3.952]